Cogmind - Beta 14 @@@ ROGUE MODE // 2024.11.04 @ 23:51:11 Player: gorb Result: Destroyed by H-61 Shepherd with Heavy Assault Cannon Performance ------------- Evolutions (2) 1000 Regions Visited (5) 1000 Robots Destroyed (36) 180 Value Destroyed (856) 856 Prototype IDs (2) 40 Alien Tech Used (0) 0 Bonus (0) 0 TOTAL SCORE: 3076 Bonus ------- None Cogmind --------- Core Integrity 0/550 Matter 248/300 Energy 264/265 System Corruption 0% Temperature Cool (76) Movement Flying (200) Ox2 Location -8/Materials Parts ------- > --- POWER (2) -------- Improved Ion Engine > --- PROPULSION (2) --- Flight Unit > --- UTILITY (3) ------ Hacking Suite > --- WEAPON (4) ------- Beam Rifle > --- INVENTORY (5) ---- Light Ion Engine Airjet Flight Unit Peak State ------------ > --- POWER ------------ Ion Engine Light Ion Engine > --- PROPULSION ------- Aluminum Leg Aluminum Leg > --- UTILITY ---------- Small Storage Unit Targeting Computer Light Armor Plating > --- WEAPON ----------- Advanced Beam Cannon Light Assault Rifle Shotgun Shotgun > --- INVENTORY -------- Nuclear Core Flight Unit Flight Unit Medium Laser EM Pulse Cannon EM Pulse Cannon Light Cannon [Rating: 16] Favorites ----------- Power Light Ion Engine Engine Light Ion Engine Propulsion Aluminum Leg Leg Aluminum Leg Wheel Compact Wheel Hover Unit Airjet Flight Unit Flight Unit Utility Small Storage Unit Device ECM Suite Storage Small Storage Unit Processor Targeting Computer Hackware Hacking Suite Protection Light Armor Plating Weapon Shotgun Energy Gun Beam Rifle Energy Cannon Advanced Beam Cannon Ballistic Gun Shotgun Ballistic Cannon Light Cannon Build | -11 -10 -10 -10 -9 -8 ------- Run | Yrd Mat Min Exi Min Mat Slots Evolved 4 | . . . . . 4 Power 1 | . . . . . 1 Propulsion . | . . . . . . Utility 1 | . . . . . 1 Weapon 2 | . . . . . 2 Parts Attached 46 | 6 12 4 . . 24 Power 9 | 2 3 . . . 4 Engine 9 | 2 3 . . . 4 Core . | . . . . . . Reactor . | . . . . . . Propulsion 14 | 2 5 2 . . 5 Treads . | . . . . . . Leg 4 | 2 . 2 . . . Wheel 2 | . 2 . . . . Hover 1 | . . . . . 1 Flight 7 | . 3 . . . 4 Utility 7 | 1 1 1 . . 4 Device 1 | . 1 . . . . Storage 2 | 1 . . . . 1 Processor 1 | . . . . . 1 Hackware 1 | . . . . . 1 Protection 2 | . . 1 . . 1 Artifact . | . . . . . . Weapon 16 | 1 3 1 . . 11 Energy Gun 3 | . . . . . 3 Energy Cannon 3 | . . . . . 3 Ballistic Gun 8 | 1 3 1 . . 3 Ballistic Cannon 2 | . . . . . 2 Launcher . | . . . . . . Special Weapon . | . . . . . . Impact Weapon . | . . . . . . Slashing Weapon . | . . . . . . Piercing Weapon . | . . . . . . Special Melee Weapon . | . . . . . . Unidentified Prototypes 2 | . . . . . 2 Parts Lost 21 | . 3 1 . . 17 Power 6 | . 2 . . . 4 Propulsion 6 | . . 1 . . 5 Utility 3 | . . . . . 3 Weapon 6 | . 1 . . . 5 Highest Loss Streak 5 | . 1 1 . . 5 To Critical Strikes . | . . . . . . Average Slot Usage (%) 86 | . 88 99 100 100 60 Engine 13 | . 12 14 14 14 12 Leg 17 | . 10 25 28 28 5 Wheel 3 | . 15 1 . . . Flight 2 | . 2 . . . 6 Device 3 | . 12 1 . . . Storage 11 | . 14 14 14 14 5 Protection 7 | . . 12 14 14 3 Energy Cannon 1 | . . . . . 6 Ballistic Gun 21 | . 19 28 28 28 9 Peak Build Rating 16 | 5 8 9 10 10 16 Average Rating 9 | 3 6 8 9 10 10 On Entrance 7 | . 5 8 9 10 10 Naked Turns . | . . . . . . Heaviest Build 27 | 11 14 17 17 17 27 Greatest Support 26 | 20 26 26 20 20 20 Greatest Overweight (x) 7 | . 1 . . . 7 Average Overweight (x) . | . . . . . 1 Largest Inventory Capacity 10 | 8 8 8 8 8 10 Average Capacity 7 | 6 8 8 8 8 6 Most Carried 8 | 5 8 8 8 8 8 Average Carried 6 | 3 6 7 8 8 4 Final Capacity 8 | 8 8 8 8 8 5 Final Carried 8 | 4 8 8 8 8 3 Class Distribution -------------------- 82% | Mutant 10% | Gunner 7% | Scavenger-Mutant Dominant Class ---------------- Mutant | -10/Materials Mutant | -10/Mines Mutant | -10/Exiles Mutant | -9/Mines Gunner | -8/Materials Resources | -11 -10 -10 -10 -9 -8 ----------- Run | Yrd Mat Min Exi Min Mat Matter Collected 867 | 260 147 62 . 120 278 Remotely . | . . . . . . Salvage Created 994 | . 175 113 . 109 597 Parts 74 | . 18 9 . 10 37 Haulers Intercepted . | . . . . . . Recyclers Shooed . | . . . . . . Parts Field Recycled . | . . . . . . Retrieved Matter . | . . . . . . Parts Self-Destructed . | . . . . . . Prevented . | . . . . . . Kills | -11 -10 -10 -10 -9 -8 ------- Run | Yrd Mat Min Exi Min Mat Combat Hostiles Destroyed 32 | . 8 2 . 6 16 Guns 25 | . 8 2 . 6 9 Cannons 5 | . . . . . 5 AOE 2 | . . . . . 2 Classes Destroyed 6 | . 3 1 . . 2 Worker 1 | . . . . . 1 Builder 2 | . . . . . 2 Watcher 1 | . 1 . . . . Swarmer 18 | . 6 . . 4 8 Grunt 9 | . 2 . . 2 5 Sentry 5 | . . 2 . . 3 Best Kill Streak 5 | . 3 2 . 4 5 Combat Bots Only 4 | . 3 2 . 4 4 Max Kills in Single Turn 3 | . 1 2 . 3 2 Gunslinging 1 | . . 1 . 1 . Exploded 2 | . . . . . 2 Melee . | . . . . . . Uniques/NPCs Destroyed . | . . . . . . Combat | -11 -10 -10 -10 -9 -8 -------- Run | Yrd Mat Min Exi Min Mat Hostile Shots Fired 216 | . 54 8 . 26 128 Missed 54 | . 9 2 . 4 39 Damage Taken 2458 | . 395 86 . 256 1721 Core 648 | . 45 . . 16 587 Absorbed by Shields . | . . . . . . Core Remaining (%) 87 | 100 . . . 75 . Volleys Fired 112 | . 38 3 . 14 57 Largest 4 | . 2 2 . 2 4 Hottest 186 | . 40 46 . 46 186 Shots Fired 205 | . 54 6 . 28 117 Gun 162 | . 54 6 . 28 74 Cannon 43 | . . . . . 43 Launcher . | . . . . . . Special . | . . . . . . Kinetic 154 | . 54 6 . 28 66 Thermal 40 | . . . . . 40 Explosive . | . . . . . . Electromagnetic 11 | . . . . . 11 Robot Hit Streak 11 | . 11 3 . 6 11 Robot Miss Streak 5 | . 3 1 . 5 4 Penetration Max . | . . . . . . Secondary Targets 3 | . . 1 . 1 1 Max Gunslinging Chain 1 | . . 1 . 1 1 Shots Hit Robots 131 | . 37 3 . 20 71 Core Hits 62 | . 17 5 . 9 31 Critical Kills 1 | . . . . 1 . Critical Parts Destroyed . | . . . . . . Critical Strikes 3 | . . . . 1 2 Burn 2 | . . . . . 2 Destroy 1 | . . . . 1 . Melee Attacks . | . . . . . . Impact . | . . . . . . Slashing . | . . . . . . Piercing . | . . . . . . Sneak Attacks . | . . . . . . Combat Hostiles . | . . . . . . Follow-up Attacks . | . . . . . . Damage Inflicted 1879 | . 304 50 . 263 1262 Guns 1157 | . 304 49 . 263 541 Cannons 542 | . . . . . 542 Explosions 179 | . . . . . 179 Melee . | . . . . . . Ramming 1 | . . 1 . . . Kinetic 1053 | . 304 49 . 263 437 Thermal 499 | . . . . . 499 Explosive 179 | . . . . . 179 Electromagnetic 147 | . . . . . 147 Impact . | . . . . . . Slashing . | . . . . . . Piercing . | . . . . . . Highest Corruption . | . . . . . . Average Corruption . | . . . . . . Corruption Purged . | . . . . . . Corruption Blocked . | . . . . . . Overload Shots . | . . . . . . Overflow Damage 55 | . . . . . 55 Projectiles 2 | . . . . . 2 Explosions 53 | . . . . . 53 Melee . | . . . . . . Knockbacks . | . . . . . . Impact . | . . . . . . Kinetic . | . . . . . . Secondary . | . . . . . . Self-Inflicted Damage 224 | . . . . . 224 Shots 2 | . . . . . 2 Rammed . | . . . . . . Targets Rammed 1 | . . 1 . . . Kicked 1 | . . 1 . . . Crushed . | . . . . . . Highest Temperature 730 | . 12 20 . 32 730 Average Temperature 152 | . 6 19 . 15 178 Received Heat Transfer 585 | . 84 36 . 96 369 Effects 21 | . . . . . 21 Shutdowns 3 | . . . . . 3 Energy Bleed 5 | . . . . . 5 Interference 3 | . . . . . 3 Matter Decay 1 | . . . . . 1 Short Circuit 2 | . . . . . 2 Damage (minor) 4 | . . . . . 4 Damage (major) 3 | . . . . . 3 Siege Activations . | . . . . . . Robots Corrupted . | . . . . . . Combat Hostiles . | . . . . . . Parts Fried . | . . . . . . Impact Corruptions . | . . . . . . Robots Melted . | . . . . . . Combat Hostiles . | . . . . . . Parts Melted 2 | . . . . . 2 Heat Transferred 1184 | . . . . . 1184 Parts Sabotaged . | . . . . . . Parts Stolen . | . . . . . . Parts Stripped . | . . . . . . Power Chain Reactions . | . . . . . . Alert | -11 -10 -10 -10 -9 -8 ------- Run | Yrd Mat Min Exi Min Mat Peak Influence 279 | . 127 90 . 140 279 Initial 45 | . . 45 . . . Average 87 | . 48 88 . 103 117 Maximum Alert Level 1 | . . . . . 1 Low Security (%) 96 | 100 100 100 . 100 88 Level 1 3 | . . . . . 11 Level 2 . | . . . . . . Level 3 . | . . . . . . Level 4 . | . . . . . . Level 5 . | . . . . . . High Security . | . . . . . . Max Security . | . . . . . . Squads Dispatched 6 | . 1 . . . 5 Investigation . | . . . . . . Extermination . | . . . . . . Reinforcement 4 | . 1 . . . 3 Assault . | . . . . . . Garrison 2 | . . . . . 2 Intercept . | . . . . . . Searches Triggered . | . . . . . . Construction Impeded . | . . . . . . Haulers Reinforced . | . . . . . . Active Scanning Responses . | . . . . . . Cargo Convoy Interrupts . | . . . . . . Stealth | -11 -10 -10 -10 -9 -8 --------- Run | Yrd Mat Min Exi Min Mat Distress Signals 2 | . 1 . . . 1 Communications Jammed . | . . . . . . Distress Signals . | . . . . . . Times Spotted 46 | . 19 2 . 3 22 Peak Tracking Total 6 | . 3 2 . 1 6 Tactical Retreats 8 | . 6 . . . 2 Traps | -11 -10 -10 -10 -9 -8 ------- Run | Yrd Mat Min Exi Min Mat Traps Triggered . | . . . . . . Indirectly . | . . . . . . Trap Hack Attempts . | . . . . . . Triggered . | . . . . . . Disarmed . | . . . . . . Reprogrammed 4 | . . . . . 4 Reused . | . . . . . . Traps Extracted . | . . . . . . Installed . | . . . . . . Triggered . | . . . . . . Machines | -11 -10 -10 -10 -9 -8 ---------- Run | Yrd Mat Min Exi Min Mat Machines Disabled 4 | . . . . . 4 Max in Single Turn 2 | . . . . . 2 Garrison Access 1 | . . . . . 1 Machines Repaired . | . . . . . . Machines Dismantled . | . . . . . . Machines Sabotaged . | . . . . . . Overloaded Fab Kills . | . . . . . . Hacking | -11 -10 -10 -10 -9 -8 --------- Run | Yrd Mat Min Exi Min Mat Machines Accessed 3 | . . . . . 3 Terminals 2 | . . . . . 2 Fabricators . | . . . . . . Repair Stations . | . . . . . . Recycling Units . | . . . . . . Scanalyzers . | . . . . . . Garrison Access 1 | . . . . . 1 Total Hacks 10 | . . . . . 10 Successful 8 | . . . . . 8 Failed 2 | . . . . . 2 Catastrophic 1 | . . . . . 1 Database Lockouts . | . . . . . . Manual . | . . . . . . Terminals 8 | . . . . . 8 Fabricators . | . . . . . . Repair Stations . | . . . . . . Recycling Units . | . . . . . . Scanalyzers . | . . . . . . Garrison Access 2 | . . . . . 2 Terminal Hacks 6 | . . . . . 6 Alert Level 3 | . . . . . 3 Unreport Threat 1 | . . . . . 1 Reprogram Traps 1 | . . . . . 1 Transport Status 1 | . . . . . 1 Fabricator Hacks . | . . . . . . Repair Station Hacks . | . . . . . . Recycling Unit Hacks . | . . . . . . Scanalyzer . | . . . . . . Garrison Access Hacks 2 | . . . . . 2 Unlock Access 1 | . . . . . 1 Seal Access 1 | . . . . . 1 Unauthorized Hacks . | . . . . . . Terminals . | . . . . . . Fabricators . | . . . . . . Repair Stations . | . . . . . . Recycling Units . | . . . . . . Scanalyzers . | . . . . . . Garrison Access . | . . . . . . Data Cores Recovered . | . . . . . . Used . | . . . . . . Hacking Detections 1 | . . . . . 1 Full Trace Events 1 | . . . . . 1 Feedback Events . | . . . . . . Feedback Blocked . | . . . . . . Robot Schematics Acquired . | . . . . . . Robots Built . | . . . . . . Authchips . | . . . . . . Time . | . . . . . . Total Robot Build Rating . | . . . . . . Part Schematics Acquired . | . . . . . . Parts Built . | . . . . . . Authchips . | . . . . . . Time . | . . . . . . Total Part Build Rating . | . . . . . . Parts Repaired . | . . . . . . Time . | . . . . . . Parts Recycled . | . . . . . . Recycled Matter . | . . . . . . Retrieved Matter . | . . . . . . Retrieved Components . | . . . . . . Parts Scanalyzed . | . . . . . . Part Schematics Acquired . | . . . . . . Parts Damaged . | . . . . . . Bothacking | -11 -10 -10 -10 -9 -8 ------------ Run | Yrd Mat Min Exi Min Mat Used RIF Installer . | . . . . . . Robots Hacked . | . . . . . . Non-combat . | . . . . . . Combat . | . . . . . . Robot Hacks Applied . | . . . . . . Relay Couplers Released . | . . . . . . Fabnet Peak Effective % . | . . . . . . Robots Rewired . | . . . . . . Allies Hacked . | . . . . . . Hacks Repelled . | . . . . . . Allies | -11 -10 -10 -10 -9 -8 -------- Run | Yrd Mat Min Exi Min Mat Total Allies 2 | . . 2 . . . Largest Group 2 | . . 2 2 . . Highest-Rated Group 54 | . . 54 54 . . Highest-Rated Ally 31 | . . 31 31 . . Total Orders . | . . . . . . Ally Attacks . | . . . . . . Total Damage . | . . . . . . Kills . | . . . . . . Allies Corrupted . | . . . . . . Allies Melted . | . . . . . . Intel | -11 -10 -10 -10 -9 -8 ------- Run | Yrd Mat Min Exi Min Mat Robot Analysis Total . | . . . . . . Derelict Logs Recovered 2 | . . 2 . . . Drone Launches . | . . . . . . Drone Recoveries . | . . . . . . Exploration | -11 -10 -10 -10 -9 -8 ------------- Run | Yrd Mat Min Exi Min Mat Turns Passed 2710 | 56 612 377 523 429 713 Spaces Moved 1812 | 45 369 303 435 310 350 Core 30 | 15 . . . . 15 Treads . | . . . . . . Legs 1296 | 30 122 283 435 310 116 Wheels 237 | . 217 20 . . . Hover 52 | . . . . . 52 Flight 197 | . 30 . . . 167 Fastest Speed 37 | 50 90 90 120 120 37 Average Speed 120 | 96 102 118 120 120 146 Slowest Speed 400 | 120 120 120 120 120 400 Overloaded Moves . | . . . . . . Propulsion Burnouts . | . . . . . . Robots Hopped . | . . . . . . Cave-ins Triggered . | . . . . . . Exploration Rate (%) 44 | 3 57 52 79 49 25 Regions Visited 5 Branch Regions 3 Pre-discovered Areas 1 | . . 1 . . . Known Exits Taken . | . . . . . . Unknown Exits Taken 5 | 1 1 1 1 1 . Scrap Searched 3 | . . 1 . 2 . Spaces Dug . | . . . . . . Terrain Destroyed 51 | . . . . . 51 Melee . | . . . . . . Projectile . | . . . . . . AOE 51 | . . . . . 51 Terrain Rammed . | . . . . . . Walls Destroyed . | . . . . . . Machines Disabled . | . . . . . . Actions | -11 -10 -10 -10 -9 -8 --------- Run | Yrd Mat Min Exi Min Mat Total 2171 | 56 558 315 436 339 467 Wait 152 | . 130 . . 16 6 Move 1807 | 44 368 302 434 309 350 Hop . | . . . . . . Pick Up 36 | 5 8 3 1 . 19 Fast Attach 5 | 4 1 . . . . Attach 27 | 1 5 1 . . 20 Detach 2 | . 1 . . . 1 Swap 14 | 1 6 3 . . 4 Drop 15 | 1 1 2 1 . 10 Fire 112 | . 38 3 . 14 57 Melee . | . . . . . . Ram . | . . . . . . Kick 1 | . . 1 . . . Crush . | . . . . . . Escape Stasis . | . . . . . . Rewire . | . . . . . . Trap . | . . . . . . Miscellaneous . | . . . . . . Route ------- -11/Scrapyard -10/Materials -10/Mines -10/Exiles -9/Mines -8/Materials History --------- Turn | Location | Event 7 | -11/Scrapyard | Discovered new exit (range 15) 57 | -11/Scrapyard | Entered Materials 303 | -10/Materials | Build established: Mutant 641 | -10/Materials | Discovered new exit (range 12) 669 | -10/Materials | Entered Mines 811 | -10/Mines | Learned 2 Materials zone layouts 822 | -10/Mines | Learned location of Storage (-8) 862 | -10/Mines | A weapon hastily lodged in a ceiling crevice suddenly fell to the ground 1027 | -10/Mines | Deemed a non-threat by the Exiles lab entrance 1029 | -10/Mines | Discovered new exit (range 5) 1046 | -10/Mines | Entered Exiles 1046 | -10/Exiles | Accompanied by 2 allies 1076 | -10/Exiles | Led the pair of lost Derelicts to a safe place 1078 | -10/Exiles | Met 8R-AWN 1103 | -10/Exiles | Met EX-HEX 1199 | -10/Exiles | Met EX-DEC 1354 | -10/Exiles | Visited The Gauntlet 1557 | -10/Exiles | Discovered new exit (range 10) 1569 | -10/Exiles | Entered Mines 1611 | -9/Mines | Found a hidden stash of uninstalled traps 1986 | -9/Mines | Discovered new exit (range 10) 1998 | -9/Mines | Entered Materials 1998 | -8/Materials | Evolved 4 slots: Power x1, Utility x1, Weapon x2 2139 | -8/Materials | Lost 5 parts (1p1n1u2w) 2323 | -8/Materials | Garrison activated, responded to threat 2384 | -8/Materials | Lost 4 parts (1p1n2w) 2437 | -8/Materials | Core integrity fell below 50% 2471 | -8/Materials | Lost 3 parts (1p2n) 2510 | -8/Materials | Identified exit to Garrison 2703 | -8/Materials | Core integrity fell below 20% 2711 | -8/Materials | Destroyed by H-61 Shepherd with Heavy Assault Cannon Last Messages --------------- dispatching Specialist reinforcements to area. Lgt. Ion Engine destroyed. Flight Unit destroyed. Knocked back. H-61 Shepherd calls for reinforcements. ALERT: Hostile activity reported, dispatching reinforcements to area. Penetrated by Slug. Hrd. Medium Armor Plating destroyed. U-05 Engineer builds a Wall. Knocked back. Acquired 3 matter. Penetrated by Slug. Lgt. Assault Rifle destroyed. Knocked back. U-05 Engineer destroyed. U-05 Engineer builds a Wall. U-05 Engineer suffers critical hit (Burn). U-05 Engineer destroyed. Penetrated by Slug. Map ----- +----------------------------------------------------+ | """"" # #????????????????????????????????? | | ####+######????????????????????????????????? | | +####### #????????????????????????????????????? | | #????????????????????????????????????? | | #????????????????????????????????????? | | +####### #????????????????????????????????????? | | ####+######?????????????????????????????????? | | """ # #?????????????????????????????????? | | """ # """ "" #?????????????????????????????????? | | """ # """ "" #?????????????????????????????????? | | # """ #?????????????????????????????????? | | !# % ##????????????????????????????????? | | / #]!! !% #????????????????????????????????? | | +]!! %##????????????????????????????????? | | ###### ! % #?????????????????????????????????? | | ?????########+##?????????????????????????????????? | | ????????????# #??????????????????????????????????? | | ????????????# #??????########????????????????????? | | ????????????# #??????# #????????????????????? | | ??????####### ######## #????????????????????? | | ??????# + [ #????????????????????? | | ####### #### ##### #????????????????????? | | #??# #???# #????????????????????? | | #??# #???# #????????????????????? | | #??# ##########+####;####????????????? | | #########??# @ !%*u x #?????? | | ???????????# u%=%u H #?????? | | ???????????# %""""" %T %! #?????? | | ########???# %""" " u######+### ??????? | | # #???# "" " #?????????????#??????? | | # #???# % #????????????????????? | | # !! #???# #????????????????????? | | # !! #???# #????????????????????? | | # !!! #???# #????????????????????? | | #* #???# #????????????????????? | | ###+####???# % ! k #????????????????????? | | #???### % #????????????????????? | | #???###%######### ##????????????????????? | | #?### # # #?????# #?????????????????????? | | #### ### #+# ###???# #?????????????????????? | | ???# # # #???? ??????????????????????? | | ???# # = # ##????????????????????????????? | | #### # # #????????????????????????????? | | # ## #????????????????????????????? | | %+[ # ###????????????????????????????? | | # ! # #?????????????????????????????? | | #### # # ##?????????????????????????????? | | #### # # #?????????????????????????????? | | # # [ ## #?????????????????????????????? | | + ########## ##?????????????????????????????? | +----------------------------------------------------+ Best States ------------- Heat Dissipation 31 Energy Generation 17 Energy Capacity 290 Matter Stores 300 Matter Capacity 300 Sight Range 16 Terrain Scan Density 10 ECM Strength 1 Armor Coverage 225 Evasion (%) 62 Targeting Accuracy 5 Offensive Hacking 10 Item Schematics ----------------- None Robot Schematics ------------------ None Fabricated ------------ Nothing Alien Tech Used ----------------- None Achievements -------------- None Challenges ------------ None Game ------ Seed ImprinterSlugBay Manual? 0 Play Time 00:30:52 Cumulative 12.1 hours Start 2024.11.04 @ 22:54:45 End 2024.11.04 @ 23:51:11 Sessions 1 Manual Loads 0 Difficulty Rogue Special Mode None Game No. 24 Rogue 24 Adventurer 0 Explorer 0 Win Type - Total 0 Types 0/0/0/0/0/0/0/0/0 Lore% 8 Gallery% 17 Achievement% 15 Wizard Run 0 Options --------- Layout 1 ASCII 0 Keyboard 0 Movement Mouse Keybinds 0 Fullscreen 1 Font 24/Smallcaps Map View 50x35 Zoom Use 0% Tactical HUD 0 Map Filters NONE Filters NONE Steam 1 RUN: 5d3f820f-c2ee-466b-88b1-e166d0f05b77